[Event "AUT Bundesliga 2021-22"]
[Site "Graz"]
[Date "2022.04.23"]
[Round "11.22"]
[White "Leisch, Lukas"]
[Black "Tica, Sven"]
[Result "1/2-1/2"]
[ECO "A14"]
[WhiteElo "2403"]
[BlackElo "2423"]
[Annotator "TA"]
[PlyCount "60"]
[EventDate "2021.01.17"]
[EventType "team-tourn"]
[EventCountry "AUT"]
[SourceTitle "playchess.com"]
[Source "ChessBase"]
[SourceQuality "1"]
[TimeControl "40/5400+30:1800+30"]

{[%evp 11,60,19,12,7,13,0,55,29,42,-14,-22,-28,-12,-21,-29,-23,0,0,0,0,0,-14,-7,-25,-24,-29,-20,-38,-24,-36,-37,-38,-41,-35,-38,-46,-30,-54,0,0,0,0,0,-7,0,0,3,0,19,3,10]} 1. c4 {[%emt 0:00:03]} e6 {[%emt 0:00:18]} 2. g3 {[%emt 0:00:06]} d5 {[%emt 0:00:06]} 3. Bg2 {[%emt 0:00:04]} Nf6 {[%emt 0:00:06]} 4. Nf3 {[%emt 0:00:06]} Be7 {[%emt 0:00:12]} 5. O-O {[%emt 0:00:08]} O-O {[%emt 0:00:06]} 6. d4 {[%emt 0:00:04]} a5 {[%emt 0:00:05]} 7. Ne5 {[%emt 0:07:58] 7.Qc2 is becoming the main line. E06: Closed Catalan: Early deviations.} c6 {[%emt 0:05:03][%cal Bc7c6,Bc6d5][%mdl 32]} 8. Nc3 {[%emt 0:02:51]} b6 {[%emt 0:01:53]} ({Better is} 8... Nfd7 $11) 9. Re1 {[%emt 0:12:32] White is slightly better.} Ba6 {[%emt 0:08:56]} 10. b3 {[%emt 0:07:56] [#]} (10. cxd5 $14 cxd5 11. e4) 10... Nfd7 $146 {[%emt 0:10:06]} ({Predecessor:} 10... b5 11. a3 Nfd7 12. Nxc6 Nxc6 13. cxb5 Bxb5 14. Nxb5 Qb6 15. a4 Rfc8 16. Ba3 Bxa3 17. Rxa3 {1-0 (33) Yang,C-Kirillov,D (2249) Chess.com INT 2022}) 11. Nxd7 {[%emt 0:04:19]} Nxd7 {[%emt 0:00:18]} 12. cxd5 {[%emt 0:00:18]} cxd5 {[%emt 0:00:07]} 13. Bb2 {[%emt 0:01:10]} b5 {[%emt 0:07:08][%cal Bb6b5,Bb5b4][%mdl 32]} 14. e4 {[%emt 0:03:23]} b4 {[%emt 0:07:09]} 15. Na4 {[%emt 0:02:04]} Nf6 {[%emt 0:09:29]} 16. f3 {[%emt 0:09:28]} Rc8 {[%emt 0:07:27]} 17. Rc1 {[%emt 0:00:34]} Rxc1 {[%emt 0:02:41]} 18. Qxc1 {[%emt 0:03:20]} Qb8 {[%emt 0:02:28]} 19. Qe3 {[%emt 0:10:46]} Rc8 {[%emt 0:05:17]} 20. Nc5 {[%emt 0:02:52]} Bb5 {[%emt 0:00:25]} 21. e5 {[%emt 0:02:51]} Nd7 {[%emt 0:01:04][%cal Rd7c5]} 22. Nxd7 {[%emt 0:00:07]} Bxd7 {[%emt 0:00:05]} 23. Rc1 {[%emt 0:00:08]} Rxc1+ {[%emt 0:00:07]} 24. Qxc1 {[%emt 0:00:41]} Qc8 {[%emt 0:00:07]} (24... a4 $15 {was preferrable.}) 25. Qxc8+ {[%emt 0:01:21] The position is equal.} Bxc8 {[%emt 0:00:15] KBB-KBB} 26. Bf1 {[%emt 0:00:03]} Bd7 {[%emt 0:00:35]} 27. Kf2 {[%emt 0:00:32]} Bc6 {[%emt 0:02:30]} 28. Bd3 {[%emt 0:00:25]} Bd7 {[%emt 0:01:15]} 29. Bc1 {[%emt 0:01:20]} Bc6 {[%emt 0:01:10]} 30. Be3 {[%emt 0:00:35]} Bd7 {[%emt 0:00:24] Weighted Error Value: White=0.10 (very precise) /Black=0.12 (very precise)} 1/2-1/2

[Event "AUT Bundesliga 2021-22"]
[Site "Graz"]
[Date "2022.04.23"]
[Round "11.23"]
[White "de Francesco, Klaus"]
[Black "Singer, Christoph"]
[Result "1/2-1/2"]
[ECO "D30"]
[WhiteElo "2177"]
[BlackElo "2345"]
[Annotator "TA"]
[PlyCount "60"]
[EventDate "2021.01.17"]
[EventType "team-tourn"]
[EventCountry "AUT"]
[SourceTitle "playchess.com"]
[Source "ChessBase"]
[SourceQuality "1"]
[TimeControl "40/5400+30:1800+30"]

{[%evp 13,60,0,0,2,0,-10,0,-15,0,-2,-11,-8,0,-19,-4,0,-5,-8,0,-29,-10,-22,0,-25,-19,-13,-27,-25,-16,-43,-39,-80,-68,-95,-38,-69,-43,-37,-42,-23,-34,-52,-53,-32,-14,-8,-7,-6,8]} 1. d4 {[%emt 0:00:07]} d5 {[%emt 0:00:37]} 2. c4 {[%emt 0:00:11]} e6 {[%emt 0:00:52]} 3. Nf3 {[%emt 0:00:10]} a6 {[%emt 0:00:47]} 4. e3 {[%emt 0:01:34]} Nf6 {[%emt 0:03:02]} 5. a3 {[%emt 0:01:16]} dxc4 {[%emt 0:00:19]} 6. Bxc4 {[%emt 0:00:06]} c5 {[%emt 0:07:03]} 7. O-O {[%emt 0:00:19]} b5 {[%emt 0:10:20]} 8. Bd3 {[%emt 0:03:21] D27: Queen's Gambit Accepted: Classical main line: 7 e4!? and 7 a4.} Bb7 {[%emt 0:01:23]} 9. Qe2 {[%emt 0:02:43]} Nbd7 {[%emt 0:05:48]} 10. Rd1 {[%emt 0:02:40]} (10. a4 $5 {[%cal Ra4b5]}) 10... cxd4 {[%emt 0:03:15]} 11. exd4 {[%emt 0:02:15] [#]} Be7 $146 {[%emt 0:00:26]} (11... Bd6 {is more complex.} 12. Ne5 O-O 13. Nc3 Rc8) ({Predecessor:} 11... Bd6 12. Nc3 Qb8 13. h3 O-O 14. Bg5 Rc8 15. Rac1 Bf4 16. Bxf4 Qxf4 17. Qe3 Qxe3 18. fxe3 {1-0 (74) Rodriguez Melian,J (2067)-Fidalgo Fernandez,L (2102) Vecindario 2010}) 12. a4 {[%emt 0:04:25]} bxa4 {[%emt 0:07:10]} 13. Rxa4 {[%emt 0:01:26]} a5 {[%emt 0:06:45]} 14. Nc3 {[%emt 0:03:06]} O-O {[%emt 0:00:44]} 15. Ra1 {[%emt 0:03:05]} Nd5 {[%emt 0:16:00]} 16. Ne4 {[%emt 0:03:57]} Nb4 {[%emt 0:03:03]} 17. Bb5 {[%emt 0:03:16]} Ba6 {[%emt 0:08:41]} 18. Bf4 {[%emt 0:02:02][%cal Bc1f4,Bf4g3,Bg3c7][%mdl 32]} Qb6 {[%emt 0:01:25]} 19. Bxa6 {[%emt 0:00:25]} Qxa6 {[%emt 0:00:31]} 20. Qxa6 {[%emt 0:01:31]} Rxa6 {[%emt 0:00:07]} 21. Rac1 {[%emt 0:00:39]} Nd5 {[%emt 0:00:42]} 22. Bg3 {[%emt 0:01:24]} Rb6 {[%emt 0:04:36]} 23. Rd2 {[%emt 0:03:59] [#]} h6 {[%emt 0:00:58]} (23... f5 $1 $17 {[%cal Rf5e4]} 24. Nc3 Rc6) 24. h4 {[%emt 0:05:34]} h5 {[%emt 0:01:26]} 25. Bc7 {[%emt 0:01:15]} Rc8 {[%emt 0:01:53]} 26. Rdc2 {[%emt 0:00:53]} Ra6 {[%emt 0:01:45][%cal Bb6a6,Ba6a8,Ba8b8][%mdl 32]} 27. Be5 {[%emt 0:02:56]} Rxc2 {[%emt 0:00:15]} 28. Rxc2 {[%emt 0:00:07]} Ra8 {[%emt 0:02:10]} 29. Bd6 {[%emt 0:05:18]} Bxd6 {[%emt 0:05:28]} 30. Nxd6 {[%emt 0:00:25]} Rb8 {[%emt 0:00:03] Weighted Error Value: White=0.13 (very precise) /Black=0.09 (flawless)} 1/2-1/2

[Event "AUT Bundesliga 2021-22"]
[Site "Graz"]
[Date "2022.04.23"]
[Round "11.24"]
[White "Lentrodt, Thomas"]
[Black "Gerhold, Michael"]
[Result "0-1"]
[ECO "A46"]
[WhiteElo "2257"]
[BlackElo "2167"]
[Annotator "TA"]
[PlyCount "142"]
[EventDate "2021.01.17"]
[EventType "team-tourn"]
[EventCountry "AUT"]
[SourceTitle "playchess.com"]
[Source "ChessBase"]
[SourceQuality "1"]
[TimeControl "40/5400+30:1800+30"]

{[%evp 9,142,9,17,0,2,-1,0,-12,0,-25,-10,-18,0,-22,-18,-12,0,-45,-15,-27,-35,-29,0,0,0,-61,37,-65,-60,-106,-118,-116,-100,-134,-131,-133,-120,-164,-155,-165,-165,-195,-170,-170,-173,-177,-172,-221,-233,-225,-215,-210,-224,-240,-235,-264,-266,-258,-246,-527,-505,-818,-800,-780,-434,-580,-580,-571,-577,-569,-540,-893,-471,-440,-428,-422,-395,-591,-416,-465,-456,-501,-497,-497,-456,-580,-546,-530,-356,-370,-343,-351,-344,-415,-415,-415,-415,-477,-477,-521,-415,-407,-424,-424,-424,-424,-423,-387,-379,-549,-514,-422,-355,-403,-385,-734,-727,-727,-691,-654,-503,-486,-416,-29969,-29970,-29970,-29971,-29963,-12839,-29979,-29978,-29978,-29979,-29981,-29982]} 1. d4 {[%emt 0:00:04]} Nf6 {[%emt 0:00:20]} 2. Nf3 {[%emt 0:00:08]} d5 {[%emt 0:00:11]} 3. c4 {[%emt 0:00:17]} e6 {[%emt 0:00:33]} 4. e3 {[%emt 0:02:11]} a6 {[%emt 0:03:00]} 5. Nbd2 {[%emt 0:04:54]} c5 {[%emt 0:02:33]} 6. cxd5 {[%emt 0:07:08] D30: Queen's Gambit Declined: Systems without Nc3.} exd5 {[%emt 0:01:46]} 7. dxc5 {[%emt 0:04:47]} Bxc5 {[%emt 0:00:07]} 8. Nb3 {[%emt 0:00:40] The position is equal. 8.a3 is vanishing.} Bd6 {[%emt 0:10:18] [#]} 9. Bd3 $146 {[%emt 0:17:35]} ({Predecessor:} 9. Be2 O-O 10. O-O Nc6 11. Nbd4 Bc7 12. b3 Qd6 13. Nxc6 bxc6 14. Bb2 Re8 15. Bxf6 Qxf6 {½-½ (25) Sandalakis,A (2433)-Hristodoulou,P (2299) Aschach 2019}) 9... Nc6 {[%emt 0:02:39]} 10. Nbd4 {[%emt 0:03:17]} Bg4 {[%emt 0:11:01]} 11. Nxc6 {[%emt 0:10:13]} bxc6 {[%emt 0:00:27]} 12. Qa4 {[%emt 0:03:06]} Bd7 {[%emt 0:16:26]} 13. Bd2 {[%emt 0:04:27]} O-O {[%emt 0:09:59]} (13... c5 $5 {[%cal Rd7a4]} 14. Qh4 O-O $15) 14. O-O {[%emt 0:05:29]} c5 {[%emt 0:00:37]} 15. Qc2 {[%emt 0:05:02]} Bb5 {[%emt 0:00:10]} 16. Rfd1 {[%emt 0:03:10]} Bc6 {[%emt 0:10:56]} 17. b4 {[%emt 0:11:00]} ({White should try} 17. Bc3 $11) 17... Qd7 {[%emt 0:02:07]} (17... Qe8 $1 $15 18. bxc5 Ba4) 18. Rdc1 {[%emt 0:04:11]} (18. bxc5 Ba4 $1 19. Qb2 (19. Qc3 Bxd1 20. Rxd1 Rfc8 $15) 19... Bxd1 20. Rxd1 Bxc5 $15) (18. Bf5 $14 Ba4 19. Bxd7 Bxc2 20. Rdc1) 18... Ba4 $15 {[%emt 0:00:31]} 19. Qb2 {[%emt 0:01:15] [#] White is now going downhill.} (19. Bf5 $15 Qb5 20. Qb2) 19... cxb4 $1 $17 {[%emt 0:00:33]} 20. Nd4 {[%emt 0:00:58]} ({Wrong is} 20. Bxb4 $2 Rfb8 21. a3 a5 $19) 20... Ne4 {[%emt 0:02:03]} 21. Be1 {[%emt 0:02:35]} a5 {[%emt 0:07:44] &Nero is more active.} 22. f3 {[%emt 0:01:32] [#]} Nc5 {[%emt 0:00:25]} 23. Bf5 {[%emt 0:00:44]} Qe7 {[%emt 0:00:28][%cal Oc5d3]} 24. Bf2 {[%emt 0:00:55]} g6 {[%emt 0:02:37]} 25. Bc2 {[%emt 0:01:07]} Bd7 {[%emt 0:00:49]} 26. Re1 {[%emt 0:00:54]} Qf6 {[%emt 0:01:03]} ({Inferior is} 26... Qe5 27. Bg3 Qf6 28. Bxd6 Qxd6 29. a3 $17) 27. Rad1 {[%emt 0:01:18]} Rfc8 {[%emt 0:01:20]} ({Worse is} 27... Qe5 28. Bg3 Qf6 29. Bxd6 Qxd6 30. Ne2 $17) 28. e4 {[%emt 0:01:29]} (28. Bg3 $142) 28... dxe4 $19 {[%emt 0:00:30]} 29. Bxe4 {[%emt 0:00:21]} Nxe4 {[%emt 0:00:37]} 30. Rxe4 {[%emt 0:00:24]} Ba4 {[%emt 0:04:02]} 31. Rd2 {[%emt 0:01:09]} Bf4 {[%emt 0:01:00] A strong pair of Bishops.} 32. Be3 {[%emt 0:01:38]} Bxe3+ {[%emt 0:00:44]} 33. Rxe3 {[%emt 0:00:02]} Rd8 {[%emt 0:01:54]} 34. Red3 $2 {[%emt 0:00:48]} (34. h3) 34... Rd5 {[%emt 0:03:04]} 35. Qb1 {[%emt 0:01:34]} (35. Re3 $142 Rad8 36. Re4) 35... Rad8 {[%emt 0:01:06]} 36. Ne2 {[%emt 0:00:59]} Qb6+ {[%emt 0:00:43]} 37. Kf1 {[%emt 0:00:41]} Rxd3 {[%emt 0:00:17]} 38. Rxd3 {[%emt 0:00:02]} Re8 {[%emt 0:02:34]} 39. Nd4 {[%emt 0:00:21]} Qc5 {[%emt 0:01:21]} 40. Nb3 {[%emt 0:00:00]} Qe5 {[%emt 0:00:00] aiming for ...Bb5.} 41. Kg1 {[%emt 0:05:21]} Bb5 {[%emt 0:06:26]} 42. Rd1 {[%emt 0:02:26]} Bc4 {[%emt 0:01:59]} 43. h3 {[%emt 0:02:10]} (43. Qc1 $142 Qe6 44. Nd4 Qe3+ 45. Qxe3 Rxe3 46. Kf2) 43... Qe3+ {[%emt 0:11:44]} 44. Kh1 {[%emt 0:01:47]} a4 {[%emt 0:02:26]} 45. Na5 {[%emt 0:03:13]} Be2 {[%emt 0:00:26]} 46. Re1 {[%emt 0:01:18]} Qc3 {[%emt 0:01:33]} 47. Rc1 {[%emt 0:04:18]} Qd2 {[%emt 0:02:31][%cal Oe2f3] Strongly threatening ...Bxf3!} 48. Qc2 {[%emt 0:03:17]} Qxc2 {[%emt 0:02:30]} 49. Rxc2 {[%emt 0:00:02][%mdl 4096] Endgame KRB-KRN} Bd3 {[%emt 0:01:26]} 50. Rd2 {[%emt 0:02:09]} Bb5 {[%emt 0:00:38] ...Ra8 is the strong threat.} 51. Rb2 {[%emt 0:02:23]} Ra8 {[%emt 0:00:47]} 52. Nb7 {[%emt 0:00:24]} Bc4 {[%emt 0:00:59]} 53. Nc5 {[%emt 0:01:21]} a3 {[%emt 0:02:44]} 54. Rc2 {[%emt 0:02:57] [#]} b3 $1 {[%emt 0:01:17]} 55. axb3 {[%emt 0:01:19] [#]} a2 $1 {[%emt 0:00:05]} 56. Rxa2 {[%emt 0:00:06]} Rxa2 {[%emt 0:00:04]} 57. bxc4 {[%emt 0:00:06] KR-KN} Rc2 {[%emt 0:00:08]} 58. Kh2 {[%emt 0:00:59]} Rxc4 {[%emt 0:00:04]} 59. Ne4 {[%emt 0:01:52]} (59. Nd7 $142) 59... Kg7 {[%emt 0:00:11]} 60. Kg3 {[%emt 0:00:39]} Ra4 {[%emt 0:00:29]} 61. h4 {[%emt 0:00:50]} f5 {[%emt 0:00:55]} 62. Ng5 $2 {[%emt 0:01:00]} (62. Nc5 Rc4 63. Nd3) 62... h6 {[%emt 0:00:16][%cal Bh7h6,Bh6g5,Bg5g4][%mdl 32]} 63. Ne6+ {[%emt 0:00:28]} Kf6 {[%emt 0:00:25]} 64. Nf4 {[%emt 0:00:33]} Rd4 {[%emt 0:01:51]} 65. Ne2 {[%emt 0:00:25]} Rd2 {[%emt 0:01:07]} 66. Nf4 {[%emt 0:02:15]} (66. Kf2 $19) 66... g5 {[%emt 0:00:03]} 67. hxg5+ {[%emt 0:00:30]} hxg5 68. Nh3 Kg6 {[%emt 0:01:00] ( -> ...Kh5)} 69. Ng1 {[%emt 0:01:00]} Kh5 {[%emt 0:00:12] Black mates.} 70. Nh3 {[%emt 0:00:23]} Rb2 {[%emt 0:00:42]} 71. Ng1 {[%emt 0:00:27]} g4 {[%emt 0:00:45] Weighted Error Value: White=0.49/Black=0.30} 0-1

[Event "AUT Bundesliga 2021-22"]
[Site "Graz"]
[Date "2022.04.23"]
[Round "11.25"]
[White "Bosiocic, Marin"]
[Black "Lenic, Luka"]
[Result "1-0"]
[ECO "C54"]
[WhiteElo "2522"]
[BlackElo "2634"]
[Annotator "TA"]
[PlyCount "97"]
[EventDate "2021.01.17"]
[EventType "team-tourn"]
[EventCountry "AUT"]
[SourceTitle "playchess.com"]
[Source "ChessBase"]
[SourceQuality "1"]
[TimeControl "40/5400+30:1800+30"]

{[%evp 17,97,0,0,-7,0,-47,-53,-56,-47,-47,-58,-142,-166,-164,-176,-170,-176,-156,-118,-101,-100,-130,-125,-120,-125,-167,-146,-169,-58,-50,-51,-29,-29,-41,3,0,16,-22,45,25,50,54,54,57,35,60,45,12,104,109,124,112,112,68,56,40,47,24,37,43,210,208,208,192,99,0,178,184,183,175,181,185,140,137,29990,29991,29991,29992,29992,29993,29993,269]} 1. e4 {[%emt 0:00:02]} e5 {[%emt 0:00:03]} 2. Nf3 {[%emt 0:00:08]} Nc6 {[%emt 0:00:04]} 3. Bc4 {[%emt 0:00:06]} Bc5 {[%emt 0:00:04]} 4. c3 {[%emt 0:00:10]} Nf6 {[%emt 0:00:04]} 5. d4 {[%emt 0:00:07]} exd4 {[%emt 0:00:15]} 6. e5 {[%emt 0:00:08]} d5 {[%emt 0:02:04]} 7. Bb5 {[%emt 0:00:06]} Ne4 {[%emt 0:00:09]} 8. cxd4 {[%emt 0:00:08]} Bb6 {[%emt 0:00:15]} 9. Nc3 {[%emt 0:00:07]} O-O {[%emt 0:02:11]} 10. h3 {[%emt 0:03:59] C54: Giuoco Piano: 4 c3 Nf6, main lines with 5 d4 and 5 d3.} Ba5 {[%emt 0:08:23] [#]} 11. Qb3 $146 {[%emt 0:02:12] [#]} (11. Bd2 $11) ({Predecessor:} 11. Bd2 Nxd2 12. Qxd2 f6 13. Bxc6 bxc6 14. O-O fxe5 15. Nxe5 Qf6 16. Rfe1 Re8 17. Re3 c5 {1-0 (35) Udvardi,Z (2211)-Acs,M (2138) Balatonlelle 2019}) 11... Nxd4 $1 $15 {[%emt 0:07:24]} 12. Nxd4 {[%emt 0:00:31] Black is slightly better.} c5 {[%emt 0:00:01][%cal Bc7c5,Bc5c4][%mdl 32]} 13. Nde2 {[%emt 0:07:11]} c4 $1 {[%emt 0:17:52][%mdl 1024] Black has compensation.} 14. Qa4 {[%emt 0:09:17]} (14. Bxc4 $15 dxc4 15. Qxc4) 14... Nc5 $1 $17 {[%emt 0:06:16]} 15. Qd1 {[%emt 0:00:50]} Nd3+ $1 {[%emt 0:00:16]} 16. Kf1 {[%emt 0:00:14]} a6 $1 {[%emt 0:03:20]} 17. Ba4 {[%emt 0:00:04]} d4 {[%emt 0:01:14] Inhibits Be3.} 18. Ne4 {[%emt 0:01:16]} Qd5 {[%emt 0:12:12]} 19. Nd6 {[%emt 0:00:45]} b5 {[%emt 0:00:23]} 20. Bc2 {[%emt 0:00:51]} Qxe5 {[%emt 0:11:47]} 21. Nxc8 {[%emt 0:00:10]} Nxc1 {[%emt 0:00:11]} 22. Nxd4 {[%emt 0:01:39] [#]} (22. Qxc1 $2 d3 23. Qe3 Qxb2 24. Ne7+ Kh8 $19) 22... Raxc8 {[%emt 0:03:12]} (22... Rd8 $1 $19 23. Qxc1 (23. Ne7+ $2 Qxe7 24. Rxc1 Qf6 $19) 23... Rxd4) 23. Nf3 $15 {[%emt 0:00:14]} (23. Rxc1 $2 Rfd8 24. Bxh7+ Kxh7 25. Qc2+ Kg8 $19) 23... Qxb2 {[%emt 0:00:08]} 24. Qxc1 {[%emt 0:00:06]} Qf6 {[%emt 0:00:09]} 25. Rb1 {[%emt 0:01:22]} h6 {[%emt 0:02:18]} (25... Rfe8 $5 {[%cal Rc8d8]}) 26. h4 {[%emt 0:01:54]} Rfe8 {[%emt 0:02:13]} 27. Rh3 {[%emt 0:00:20]} Bc7 {[%emt 0:07:00]} (27... Rcd8 $11) 28. Qb2 $14 {[%emt 0:04:33] Strongly threatening Qxf6.} Qe7 {[%emt 0:02:59]} 29. Re1 {[%emt 0:03:35]} Qc5 {[%emt 0:00:02]} 30. Rxe8+ {[%emt 0:01:14]} Rxe8 {[%emt 0:00:01]} 31. Qd4 {[%emt 0:01:18]} Qe7 {[%emt 0:02:14] ( -> ...Qe2+)} 32. Qd1 {[%emt 0:00:05] Against Qe2+} Qf6 {[%emt 0:05:11]} (32... Bb6 $11) 33. h5 $1 $16 {[%emt 0:01:48]} Rd8 {[%emt 0:00:37]} 34. Qb1 {[%emt 0:00:59]} Bb6 {[%emt 0:00:50][%cal Od8d2]} 35. Qe1 {[%emt 0:02:20] Inhibits Rd2.} Qb2 {[%emt 0:02:15][%csl LRa2,LRc2]} 36. Qe4 {[%emt 0:02:03]} Kf8 $1 {[%emt 0:00:07] ...Re8 is the strong threat.} 37. g4 {[%emt 0:01:46]} Re8 {[%emt 0:03:26] Prevents Ne5.} (37... Qxa2 38. Ne5 Qa1+ 39. Bb1 $18) 38. Qf5 {[%emt 0:00:09] Hoping for g5.} Qc1+ {[%emt 0:00:45]} ({Black should try} 38... Qxa2 $14 39. Nh4 (39. Kg2 Re2 $11) 39... Qa1+ 40. Bb1 (40. Kg2 Qf6 $11) 40... Qf6) 39. Kg2 $18 {[%emt 0:00:13][%cal Bf1g2,Bg2f2,Bf2g3][%mdl 32] aiming for Ne5.} Re2 {[%emt 0:00:13]} 40. Qc8+ {[%emt 0:00:00]} Re8 {[%emt 0:00:00]} 41. Qxa6 {[%emt 0:06:48]} (41. Qb7 $16 {[%cal Of3e5] And now Ne5! would win.} Bxf2 42. Bg6 fxg6 43. hxg6) 41... Bxf2 $2 {[%emt 0:02:35] [#]} 42. Qd6+ $1 {[%emt 0:00:10]} ({Resist} 42. Kxf2 Qxc2+ 43. Kg3 b4 $16) 42... Re7 {[%emt 0:04:34]} 43. Kxf2 {[%emt 0:01:34]} Qxc2+ {[%emt 0:00:58]} 44. Kg3 {[%emt 0:00:04] Black must now prevent Rh1.} Qxa2 {[%emt 0:02:26] [#]} 45. g5 $1 {[%emt 0:01:24] Dancing on a razor blade.} hxg5 {[%emt 0:08:49][%mdl 8192]} (45... c3 $16) 46. h6 {[%emt 0:00:09] White mates.} gxh6 {[%emt 0:01:04]} 47. Qxh6+ {[%emt 0:00:09]} Ke8 {[%emt 0:00:01]} 48. Qc6+ {[%emt 0:00:08]} Rd7 {[%emt 0:00:02]} 49. Rh8+ {[%emt 0:00:21] Quite a comeback for White.  Weighted Error Value: White=0.12 (very precise) /Black=0.40} 1-0

[Event "AUT Bundesliga 2021-22"]
[Site "Graz"]
[Date "2022.04.23"]
[Round "11.26"]
[White "Lagarde, Maxime"]
[Black "Brkic, Ante"]
[Result "1/2-1/2"]
[ECO "C92"]
[WhiteElo "2626"]
[BlackElo "2607"]
[Annotator "TA"]
[PlyCount "77"]
[EventDate "2021.01.17"]
[EventType "team-tourn"]
[EventCountry "AUT"]
[SourceTitle "playchess.com"]
[Source "ChessBase"]
[SourceQuality "1"]
[TimeControl "40/5400+30:1800+30"]

{[%evp 25,77,1,19,15,21,10,16,0,-4,-8,0,-14,-34,-8,0,-42,-40,-68,-24,-19,-39,-29,0,0,44,47,46,53,36,51,46,45,51,0,21,16,14,0,0,-14,0,0,0,-15,0,-7,-7,-7,-7,-6,-8,-7,0,0]} 1. e4 {[%emt 0:00:02]} e5 {[%emt 0:00:09]} 2. Nf3 {[%emt 0:00:03]} Nc6 {[%emt 0:00:05]} 3. Bb5 {[%emt 0:00:03]} a6 {[%emt 0:00:07]} 4. Ba4 {[%emt 0:00:03]} Nf6 {[%emt 0:00:05]} 5. O-O {[%emt 0:00:13]} Be7 {[%emt 0:03:54]} 6. Re1 {[%emt 0:00:05]} b5 {[%emt 0:00:08]} 7. Bb3 {[%emt 0:00:03]} d6 {[%emt 0:01:04]} 8. c3 {[%emt 0:00:20]} O-O {[%emt 0:00:05]} 9. h3 {[%emt 0:00:03]} Re8 {[%emt 0:02:57]} 10. d4 {[%emt 0:00:35]} Bb7 {[%emt 0:00:15]} 11. Nbd2 {[%emt 0:03:28]} Bf8 {[%emt 0:01:29]} 12. a3 {[%emt 0:00:53]} h6 {[%emt 0:01:18]} 13. Ba2 {[%emt 0:04:05]} Nb8 {[%emt 0:02:52]} 14. Qb3 {[%emt 0:14:32] C93: Closed Ruy Lopez: Smyslov Variation.} Qd7 {[%emt 0:02:57]} 15. Qc2 {[%emt 0:14:28]} c5 {[%emt 0:00:14]} 16. b3 {[%emt 0:01:28]} exd4 {[%emt 0:09:53]} 17. cxd4 {[%emt 0:00:20]} cxd4 {[%emt 0:00:49]} 18. Bb2 {[%emt 0:08:41]} Nc6 {[%emt 0:01:03][%cal Bb8c6,Bc6e5,Be5f3][%mdl 32] [#]} 19. b4 $146 {[%emt 0:05:41]} ({Predecessor:} 19. Rad1 b4 20. a4 Rac8 21. Qb1 Qe6 22. Qa1 Nh5 23. Bb1 Nf4 24. Kh2 Ne5 25. Bxd4 {1-0 (46) Aravindh,C (2609)-Kollars,D (2587) New Delhi 2019}) 19... Ne5 {[%emt 0:06:09]} 20. Nxd4 {[%emt 0:03:42]} Rac8 {[%emt 0:00:43]} 21. Qb1 {[%emt 0:05:15]} d5 {[%emt 0:11:59] [#] Strongly threatening ...dxe4.} (21... g6 $5 {[%cal Rf8g7]}) 22. N4f3 $1 {[%emt 0:08:21]} Nxf3+ {[%emt 0:06:01]} 23. Nxf3 {[%emt 0:01:35]} Nxe4 {[%emt 0:00:45]} 24. Ne5 {[%emt 0:01:18]} Qf5 {[%emt 0:12:38] [#]} 25. Rxe4 $1 {[%emt 0:00:09]} Qxe4 {[%emt 0:00:12]} 26. Qxe4 {[%emt 0:00:10]} dxe4 {[%emt 0:00:01]} 27. Bxf7+ {[%emt 0:00:14]} Kh7 {[%emt 0:00:02]} 28. Bg6+ {[%emt 0:00:45]} Kg8 {[%emt 0:00:18]} 29. Bf7+ {[%emt 0:09:57]} Kh7 {[%emt 0:00:12] The position is equal.} 30. Bxe8 {[%emt 0:00:10]} Rxe8 {[%emt 0:00:05]} 31. Rd1 {[%emt 0:00:31]} Be7 {[%emt 0:05:08]} 32. Ng4 {[%emt 0:00:16] Against Bf6} Rd8 {[%emt 0:01:15] Against Rd7} 33. Rxd8 {[%emt 0:00:15]} Bxd8 $11 {[%emt 0:00:03][%mdl 4096] Endgame KBB-KBN} 34. Ne3 {[%emt 0:00:08]} g5 {[%emt 0:05:20]} 35. Bd4 {[%emt 0:00:56]} Kg6 {[%emt 0:00:47]} 36. Kf1 {[%emt 0:00:05]} Bc7 {[%emt 0:00:59]} 37. Ke2 {[%emt 0:00:24]} Bf4 {[%emt 0:01:00]} 38. Kd2 {[%emt 0:00:27]} Bd5 {[%emt 0:05:54]} 39. g3 {Weighted Error Value: White=0.07 (flawless) /Black=0.08 (flawless)} 1/2-1/2